Workbook

Sheet Лист1
A1: Школа | F1: Утвердил: | G1: должность
A2: Типовое примерное меню приготавливаемых блюд | G2: фамилия
A3: Возрастная категория | E3: с 7 до 11 лет | G3: дата
A5: Неделя | B5: День недели | C5: Прием пищи | D5: Раздел меню | E5: Блюда | F5: Вес блюда, г | G5: Белки | H5: Жиры | I5: Углеводы | J5: Калорийность | K5: № рецептуры | L5: Цена
A6: 1 | B6: 1 | C6: Завтрак | D6: гор.блюдо | E6: Котлеты из говядины с томатным соусом | F6: 100 | G6: 16.2 | H6: 14.5 | I6: 13.9 | J6: 252 | K6: 98
D7: гор.блюдо | E7: Макаронные изделия отварные | F7: 155 | G7: 6 | H7: 5 | I7: 36 | J7: 212 | K7: 212
D8: напиток | E8: Кисель Валетек | F8: 200 | G8: 0 | H8: 0 | I8: 23.9 | J8: 0.38 | K8: 311
D9: хлеб | E9: Хлеб пшеничный,ржаное для детского питания | F9: 30 | G9: 2.7 | H9: 0 | I9: 18.7 | J9: 94.7 | K9: СГР
D10: фрукты | F10: 200 | G10: 1 | H10: 0 | I10: 7 | J10: 34
D11: закуска | E11: Салат из моркови | F11: 80 | G11: 0.8 | H11: 3.6 | I11: 11.6 | J11: 80 | K11: 17
D13: итого | F13: =SUM(F6:F12) -> 765 | G13: 26.7 | H13: 23.1 | I13: 111.1 | J13: 673.08
A14: =A6 -> 1 | B14: =B6 -> 1 | C14: Обед | D14: закуска | E14: Салат"Степной" | F14: 80 | G14: 1.2 | H14: 2.8 | I14: 5.9 | J14: 53 | K14: 40
D15: 1 блюдо | E15: Рассольник домашний на мясном бульоне | F15: 210 | G15: 12 | H15: 9 | I15: 12 | J15: 180 | K15: 57
D16: 2 блюдо | E16: Плов из отварной говядины | F16: 180 | G16: 13 | H16: 16 | I16: 39 | J16: 350 | K16: 221
D17: гарнир
D18: сладкое | E18: Компот из сухофруктов с витамином | F18: 200 | G18: 0.5 | H18: 0.1 | I18: 31.2 | J18: 121 | K18: 294
D19: хлеб бел. | E19: Хлеб пшеничный для детского питания | F19: 25 | G19: 2 | H19: 0 | I19: 12 | J19: 59 | K19: СГР
D20: хлеб черн. | E20: Хлеб ржаной для деткого питания | F20: 25 | G20: 2 | H20: 0 | I20: 10 | J20: 50 | K20: СГР
D23: итого | F23: =SUM(F14:F22) -> 720 | G23: 30.7 | H23: 27.9 | I23: 110.1 | J23: 813
A24: =A6 -> 1 | B24: =B6 -> 1 | C24: Итого за день: | G24: 59.6 | H24: 50.4 | I24: 209.6 | J24: 1442.08
A25: 1 | B25: 2 | C25: Завтрак | D25: гор.блюдо | E25: Запеканка из творога со сгущенным молоком | F25: 120 | G25: 14.2 | H25: 3.4 | I25: 30.8 | J25: 214 | K25: 224
D27: гор.напиток | E27: Чай с сахаром | F27: 200 | G27: 0 | H27: 0 | I27: 15 | J27: 60 | K27: 283
D28: хлеб | E28: Хлеб с сливочным маслом | F28: 38 | G28: 2.9 | H28: 7 | I28: 18.9 | J28: 161.6 | K28: СГР
D29: Сладкое | E29: Кисломолочный продукт | F29: 200 | G29: 3 | H29: 3 | I29: 5 | J29: 60 | K29: 280
D32: итого | F32: =SUM(F25:F31) -> 558 | G32: 20.1 | H32: 13.4 | I32: 69.7 | J32: 495.6
A33: =A25 -> 1 | B33: =B25 -> 2 | C33: Обед | D33: закуска | E33: Салат из белокачанной капусты | F33: 80 | G33: 1.5 | H33: 3.7 | I33: 7.7 | J33: 69 | K33: 8
D34: 1 блюдо | E34: Суп куллама по - деревенски на мясном бульоне | F34: 200 | G34: 12 | H34: 7 | I34: 13 | J34: 162 | K34: 75
D35: 2 блюдо | E35: Гуляш из отварного мяса | F35: 90 | G35: 9 | H35: 11 | I35: 2 | J35: 144 | K35: 96
D36: гарнир | E36: Каша пшенная рассыпчатая с маслом | F36: 150 | G36: 8 | H36: 6 | I36: 47 | J36: 273 | K36: 176
D37: сладкое | E37: Компот из плодов яблок | F37: 200 | G37: 0 | H37: 0 | I37: 16 | J37: 67 | K37: 295
D38: хлеб бел. | E38: Хлеб пшеничный для детского питания | F38: 25 | G38: 2 | H38: 0 | I38: 12 | J38: 59 | K38: СГР
D39: хлеб черн. | E39: Хлеб ржаной для детского питания | F39: 25 | G39: 2 | H39: 0 | I39: 10 | J39: 50 | K39: СГР
D42: итого | F42: =SUM(F33:F41) -> 770 | G42: 34.5 | H42: 27.7 | I42: 107.7 | J42: 824
A43: =A25 -> 1 | B43: =B25 -> 2 | C43: Итого за день: | G43: 61.8 | H43: 51 | I43: 180.1 | J43: 1451.6
A44: 1 | B44: 3 | C44: Завтрак | D44: гор.блюдо | E44: Котлеты рыбные | F44: 90 | G44: 9 | H44: 4 | I44: 9 | J44: 108 | K44: 83
D45: гор.блюдо | E45: Пюре картофельное | F45: 150 | G45: 3 | H45: 4.9 | I45: 20 | J45: 138.3 | K45: 138
D46: гор.напиток | E46: Какао с молоком | F46: 200 | G46: 4 | H46: 4 | I46: 22 | J46: 136 | K46: 289
D47: хлеб | E47: Хлеб пшеничный,ржаной | F47: 30 | G47: 2.9 | H47: 0 | I47: 18.9 | J47: 95.6 | K47: СГР
D48: фрукты | F48: 200 | G48: 1 | H48: 0 | I48: 7 | J48: 34
D51: итого | F51: 670 | G51: 19.9 | H51: 12.9 | I51: 76.9 | J51: 511.9
A52: =A44 -> 1 | B52: =B44 -> 3 | C52: Обед | D52: закуска | E52: Салат из свеклы с растительным | F52: 80 | G52: 1.1 | H52: 6.6 | I52: 5.3 | J52: 105 | K52: 25
D53: 1 блюдо | E53: Суп из овощей на мясном бульоне со сметаной | F53: 210 | G53: 13 | H53: 9 | I53: 9 | J53: 171 | K53: 67
D54: 2 блюдо | E54: Бефстроганов | F54: 100 | G54: 16.5 | H54: 24.9 | I54: 9 | J54: 325 | K54: 92
D55: гарнир | E55: Отварные макаронные изделия | F55: 155 | G55: 5.82 | H55: 4.31 | I55: 37.08 | J55: 210.5 | K55: 212
D56: сладкое | E56: Компот из сухофруктов | F56: 200 | G56: 0 | H56: 0 | I56: 16 | J56: 69 | K56: 294
D57: хлеб бел. | E57: Хлеб пшеничный для детского питания | F57: 25 | G57: 2 | H57: 0 | I57: 12 | J57: 59 | K57: СГР
D58: хлеб черн. | E58: Хлеб ржаной для детского питания | F58: 25 | G58: 2 | H58: 0 | I58: 10 | J58: 50 | K58: СГР
D61: итого | F61: =SUM(F52:F60) -> 795 | G61: 40.42 | H61: 44.81 | I61: 98.38 | J61: 989.5
A62: =A44 -> 1 | B62: =B44 -> 3 | C62: Итого за день: | G62: 60.32 | H62: 57.71 | I62: 175.28 | J62: 1501.4
A63: 1 | B63: 4 | C63: Завтрак | D63: гор.блюдо | E63: Каша "Дружба" с маслом | F63: 185 | G63: 5 | H63: 7 | I63: 25 | J63: 185 | K63: 196
D65: гор.напиток | E65: Чай с лимоном | F65: 207 | G65: 0 | H65: 0 | I65: 15 | J65: 62 | K65: 285
D66: хлеб | E66: Хлеб с сыром | F66: 40 | G66: 5.7 | H66: 3 | I66: 18.7 | J66: 130.7 | K66: СГР
D67: фрукты | F67: 200 | G67: 1 | H67: 0 | I67: 7 | J67: 34
D68: булочное | E68: Булочка "Домашняя" | F68: 75 | G68: 5 | H68: 10 | I68: 38 | J68: 256 | K68: 273
D70: итого | F70: =SUM(F63:F69) -> 707 | G70: 16.7 | H70: 20 | I70: 103.7 | J70: 667.7
A71: =A63 -> 1 | B71: =B63 -> 4 | C71: Обед | D71: закуска | E71: Салат из моркови | F71: 80 | G71: 1.2 | H71: 5.3 | I71: 3.8 | J71: 68 | K71: 20
D72: 1 блюдо | E72: Борщ с капустой и картофелем на мясном бульоне со сметаной | F72: 210 | G72: 14 | H72: 9 | I72: 14 | J72: 196 | K72: 42
D73: 2 блюдо | E73: Жаркое по-домашнему | F73: 185 | G73: 11 | H73: 14 | I73: 17 | J73: 236 | K73: 97
D74: гарнир
D75: сладкое | E75: Компот из сухофруктов | F75: 200 | G75: 1 | H75: 0 | I75: 25 | J75: 108 | K75: 294
D76: хлеб бел. | E76: Хлеб пшеничный для детского питания | F76: 25 | G76: 2.5 | H76: 0 | I76: 13 | J76: 59 | K76: СГР
D77: хлеб черн. | E77: Хлеб ржаной для детского питания | F77: 25 | G77: 2.5 | H77: 0 | I77: 11 | J77: 50 | K77: СГР
D80: итого | F80: =SUM(F71:F79) -> 725 | G80: 32.2 | H80: 28.3 | I80: 83.8 | J80: 717
A81: =A63 -> 1 | B81: =B63 -> 4 | C81: Итого за день: | G81: 60.84 | H81: 48.3 | I81: 187.5 | J81: 1384.7
A82: 1 | B82: 5 | C82: Завтрак | D82: гор.блюдо | E82: Плов из отварной говядины | F82: 180 | G82: 13 | H82: 16 | I82: 39 | J82: 350 | K82: 221
D84: гор.напиток | E84: Чай с сахаром | F84: 200 | G84: 1 | H84: 2 | I84: 12 | J84: 70 | K84: 283
D85: хлеб | E85: Хлеб пшеничный,ржаной для детского питания | F85: 30 | G85: 2.7 | H85: 0 | I85: 18.7 | J85: 94.7 | K85: СГР
D86: фрукты | F86: 200 | G86: 1 | H86: 0 | I86: 7 | J86: 34
D87: закуска | E87: Салат Пестрый | F87: 80 | G87: 0.8 | H87: 4 | I87: 8.3 | J87: 72 | K87: 33
D89: итого | F89: =SUM(F82:F88) -> 690 | G89: 18.5 | H89: 22 | I89: 85 | J89: 620.7
A90: =A82 -> 1 | B90: =B82 -> 5 | C90: Обед | D90: закуска | E90: Винегрет | F90: 80 | G90: 1 | H90: 1.9 | I90: 5.7 | J90: 44 | K90: 42
D91: 1 блюдо | E91: Суп -лапша домашняя на мясном бульоне | F91: 200 | G91: 16 | H91: 10 | I91: 12 | J91: 200 | K91: 66
D92: 2 блюдо | E92: Рыба тушеная в томате с овощами | F92: 140 | G92: 10 | H92: 6 | I92: 5 | J92: 111 | K92: 80
D93: гарнир | E93: Каша пшеничная рассыпчатая | F93: 150 | G93: 6.67 | H93: 4 | I93: 39 | J93: 187.5 | K93: 175
D94: сладкое | E94: Компот из сухофруктов | F94: 200 | G94: 0 | H94: 0 | I94: 16 | J94: 69 | K94: 295
D95: хлеб бел. | E95: Хлеб пшеничный для детского питания | F95: 25 | G95: 2 | H95: 0 | I95: 12 | J95: 59 | K95: СГР
D96: хлеб черн. | E96: Хлеб ржаной для детского питания | F96: 25 | G96: 2 | H96: 0 | I96: 10 | J96: 50 | K96: СГР
D99: итого | F99: =SUM(F90:F98) -> 820 | G99: 37.67 | H99: 21.9 | I99: 99.7 | J99: 720.5
A100: =A82 -> 1 | B100: =B82 -> 5 | C100: Итого за день: | G100: 54.7 | H100: 44 | I100: 173.7 | J100: 1320.7
A101: 2 | B101: 1 | C101: Завтрак | D101: гор.блюдо | E101: Котлеты из говядины | F101: 100 | G101: 13.53 | H101: 13.3 | I101: 13.58 | J101: 228.11 | K101: 98
D102: гор.блюдо | E102: Макаронные изделия отварные | F102: 150 | G102: 6 | H102: 5 | I102: 36 | J102: 212 | K102: 212
D103: гор.напиток | E103: Чай с сахаром | F103: 200 | G103: 1 | H103: 2 | I103: 12 | J103: 70 | K103: 284
D104: хлеб.бел | E104: Хлеб с сыром | F104: 40 | G104: 5.7 | H104: 3 | I104: 18.7 | J104: 130.7 | K104: СГР
D105: фрукты | F105: 200 | G105: 1 | H105: 0 | I105: 7 | J105: 34
D108: итого | F108: =SUM(F101:F107) -> 690 | G108: 27.23 | I108: 87.28 | J108: 674.81
A109: =A101 -> 2 | B109: =B101 -> 1 | C109: Обед | D109: закуска | E109: Салат из свеклы с яблоками | F109: 80 | G109: 1 | H109: 3 | I109: 5 | J109: 51 | K109: 27
D110: 1 блюдо | E110: Суп картофельный с бобовыми на мясном бульоне | F110: 200 | G110: 15 | H110: 8 | I110: 16 | J110: 197 | K110: 63
D111: 2 блюдо | E111: Бефстроганов из отварной мясы | F111: 100 | G111: 10 | H111: 9 | I111: 2 | J111: 132 | K111: 93
D112: гарнир | E112: Каша гречневая рассыпчатая | F112: 155 | G112: 9 | H112: 7 | I112: 40 | J112: 253 | K112: 173
D113: напиток | E113: Витаминизированный кисель | F113: 200 | G113: 0 | H113: 0 | I113: 12 | J113: 128 | K113: 311
D114: хлеб бел. | E114: Хлеб пшеничный для детского питания | F114: 25 | G114: 2 | H114: 0 | I114: 12 | J114: 59 | K114: СГР
D115: хлеб черн. | E115: Хлеб ржаной для детского питания | F115: 25 | G115: 2 | H115: 0 | I115: 10 | J115: 50 | K115: СГР
D118: итого | F118: =SUM(F109:F117) -> 785 | G118: 39 | H118: 27 | I118: 97 | J118: 870
A119: =A101 -> 2 | B119: =B101 -> 1 | C119: Итого за день: | G119: 68.93 | H119: 52.8 | I119: 191.48 | J119: 1605.21
A120: 2 | B120: 2 | C120: Завтрак | D120: гор.блюдо | E120: Каша пшенная молочная | F120: 185 | G120: 5 | H120: 7 | I120: 30 | J120: 202 | K120: 198
D122: гор.напиток | E122: Чай с сахаром | F122: 207 | G122: 0 | H122: 0 | I122: 15 | J122: 62 | K122: 285
D123: хлеб | E123: Хлеб с сливочным маслом | F123: 40 | G123: 2.9 | H123: 7 | I123: 18.9 | J123: 161.6 | K123: СГР
D124: фрукты | F124: 200 | G124: 1 | H124: 0 | I124: 7 | J124: 34
D125: булочное | E125: Булочка домашняя | F125: 75 | G125: 8 | H125: 8 | I125: 44 | J125: 286 | K125: 273
D127: итого | F127: =SUM(F120:F126) -> 707 | G127: 16.9 | H127: 15 | I127: 114.9 | J127: 679.6
A128: =A120 -> 2 | B128: =B120 -> 2 | C128: Обед | D128: закуска | E128: Салат Витаминный | F128: 80 | G128: 0.48 | H128: 1.44 | I128: 3.52 | J128: 28.8 | K128: 22
D129: 1 блюдо | E129: Свекольник на мясном бульоне | F129: 210 | G129: 3 | H129: 5 | I129: 15 | J129: 121 | K129: 68
D130: 2 блюдо | E130: Плов из отварной говядины | F130: 180 | G130: 13.9 | H130: 17 | I130: 41.6 | J130: 373 | K130: 221
D131: гарнир
D132: сладкое | E132: Компот из плодов яблок | F132: 200 | G132: 0 | H132: 0 | I132: 16 | J132: 67 | K132: 295
D133: хлеб бел. | E133: Хлеб пшеничный для детского пттания | F133: 25 | G133: 2 | H133: 0 | I133: 12 | J133: 59 | K133: СГР
D134: хлеб черн. | E134: Хлеб ржаной для детского питания | F134: 25 | G134: 2 | H134: 0 | I134: 10 | J134: 50 | K134: СГР
D137: итого | F137: =SUM(F128:F136) -> 720 | G137: 21.38 | H137: 23.44 | I137: 98.12 | J137: 698.8
A138: =A120 -> 2 | B138: =B120 -> 2 | C138: Итого за день: | G138: 38.8 | H138: 43 | I138: 214.5 | J138: 1429.6
A139: 2 | B139: 3 | C139: Завтрак | D139: гор.блюдо | E139: Котлеты мясные | F139: 100 | G139: 9 | H139: 4 | I139: 9 | J139: 108 | K139: 98
D140: гор.блюдо | E140: Пюре картофельное | F140: 150 | G140: 3 | H140: 6 | I140: 22 | J140: 153 | K140: 138
D141: гор.напиток | E141: Какао с молоком | F141: 200 | G141: 4 | H141: 4 | I141: 22 | J141: 136 | K141: 299
D142: хлеб | E142: Хлеб пшеничный,ржаной для детского питания | F142: 30 | G142: 2.9 | H142: 0 | I142: 18.9 | J142: 95.6 | K142: СГР
D143: фрукты | F143: 200 | G143: 1 | H143: 0 | I143: 7 | J143: 34
D146: итого | F146: =SUM(F139:F145) -> 680 | G146: 19.9 | H146: 14 | I146: 78.9 | J146: 526.6
A147: =A139 -> 2 | B147: =B139 -> 3 | C147: Обед | D147: закуска | E147: Салат Степной | F147: 80 | G147: 1.2 | H147: 2.8 | I147: 5.9 | J147: 53 | K147: 40
D148: 1 блюдо | E148: Суп картофельный с крупой на мясном бульоне | F148: 200 | G148: 3 | H148: 5 | I148: 15 | J148: 121 | K148: 66
D149: 2 блюдо | E149: Рагу овощное с мясом | F149: 200 | G149: 14.3 | H149: 17.3 | I149: 14 | J149: 269 | K149: 118
D150: гарнир
D151: сладкое | E151: Компот из сухофруктов | F151: 200 | G151: 0 | H151: 0 | I151: 16 | J151: 67 | K151: 294
D152: хлеб бел. | E152: Хлеб пшеничный для детского питания | F152: 25 | G152: 2 | H152: 0 | I152: 12 | J152: 59 | K152: СГР
D153: хлеб черн. | E153: Хлеб ржаной для детского питания | F153: 25 | G153: 2 | H153: 0 | I153: 10 | J153: 50 | K153: СГР
D156: итого | F156: =SUM(F147:F155) -> 730 | G156: 22.5 | H156: 25.1 | I156: 72.9 | J156: 619
A157: =A139 -> 2 | B157: =B139 -> 3 | C157: Итого за день: | G157: 41.8 | H157: 42 | I157: 179.5 | J157: 1281.6
A158: 2 | B158: 4 | C158: Завтрак | D158: гор.блюдо | E158: Каша гречневая рассыпчатая | F158: 155 | G158: 9 | H158: 7 | I158: 40 | J158: 253 | K158: 173
E159: Сыр (порциями) | F159: 10 | G159: 3 | H159: 3 | I159: 0 | J159: 36 | K159: 1
D160: напиток | E160: Витаминный напиток | F160: 200 | G160: 0 | H160: 0 | I160: 16.9 | J160: 64 | K160: 301
D161: хлеб | E161: Хлеб с сливочным маслом | F161: 38 | G161: 2.7 | H161: 7 | I161: 18.7 | J161: 160.7 | K161: СГР
D162: фрукты | F162: 200 | G162: 1 | H162: 0 | I162: 7 | J162: 34
D165: итого | F165: =SUM(F158:F164) -> 603 | G165: 15.7 | H165: 17 | I165: 82.6 | J165: 547.7
A166: =A158 -> 2 | B166: =B158 -> 4 | C166: Обед | D166: закуска | E166: Салат Здоровье | F166: 80 | G166: 0 | H166: 7 | I166: 0 | J166: 66 | K166: 12
D167: 1 блюдо | E167: Рассольник ленинградский на мясном бульоне | F167: 210 | G167: 13 | H167: 4.1 | I167: 5.8 | J167: 64 | K167: 34
D168: 2 блюдо | E168: Гуляш | F168: 100 | G168: 17.3 | H168: 18.1 | I168: 3.2 | J168: 245 | K168: 95
D169: гарнир | E169: Отварные макаронные изделия | F169: 155 | G169: 6.6 | H169: 4.7 | I169: 39.4 | J169: 230 | K169: 212
D170: сладкое | E170: Компот из сухофруктов | F170: 200 | G170: 0 | H170: 0 | I170: 16 | J170: 67 | K170: 294
D171: хлеб бел. | E171: Хлеб пшеничный для детского питания | F171: 25 | G171: 2.5 | H171: 0 | I171: 13 | J171: 59 | K171: СГР
D172: хлеб черн. | E172: Хлеб ржаной для детского питания | F172: 25 | G172: 2.5 | H172: 0 | I172: 11 | J172: 50 | K172: СГР
D175: итого | F175: =SUM(F166:F174) -> 795 | G175: 43.1 | H175: 35.9 | I175: 102.4 | J175: 907
A176: =A158 -> 2 | B176: =B158 -> 4 | C176: Итого за день: | G176: 48.3 | H176: 43.8 | I176: 162.6 | J176: 1242.7
A177: 2 | B177: 5 | C177: Завтрак | D177: гор.блюдо | E177: Каша рисовая молочная | F177: 185 | G177: 7 | H177: 7 | I177: 33 | J177: 223 | K177: 181
D179: гор.напиток | E179: Чай с сахаром | F179: 200 | G179: 0 | H179: 0 | I179: 15 | J179: 60 | K179: 283
D180: хлеб | E180: Хлеб пшеничный ,ржаной для детского питания | F180: 30 | G180: 2.9 | H180: 0 | I180: 18.9 | J180: 95.6 | K180: СГР
D181: Сладкое | E181: Кисломолочный продукт с сахаром | F181: 210 | G181: 3 | H181: 3 | I181: 5 | J181: 60 | K181: 280
D182: булочное | E182: Плюшки московские | F182: 75 | G182: 5 | H182: 8 | I182: 36 | J182: 237 | K182: 270
D184: итого | F184: =SUM(F177:F183) -> 700 | G184: 17.9 | H184: 18 | I184: 107.9 | J184: 675.6
A185: =A177 -> 2 | B185: =B177 -> 5 | C185: Обед | D185: закуска | E185: Салат из свеклы с изюмом | F185: 80 | G185: 1 | H185: 4.6 | I185: 9.6 | J185: 82 | K185: 26
D186: 1 блюдо | E186: Щи из свежий капусты со сметаной | F186: 210 | G186: 2 | H186: 5 | I186: 8 | J186: 86 | K186: 53
D187: 2 блюдо | E187: Рыба тушеная в томате с овощами | F187: 140 | G187: 10 | H187: 6 | I187: 5 | J187: 111 | K187: 80
D188: гарнир | E188: Каша ячневая рассыпчатая | F188: 150 | G188: 4 | H188: 6 | I188: 40 | J188: 226 | K188: 177
D189: сладкое | E189: Компот из сухофруктов | F189: 200 | G189: 0 | H189: 0 | I189: 16 | J189: 67 | K189: 295
D190: хлеб бел. | E190: Хлеб пшеничный для детского питания | F190: 25 | G190: 2 | H190: 0 | I190: 12 | J190: 59 | K190: СГР
D191: хлеб черн. | E191: Хлеб ржаной для детского питания | F191: 25 | G191: 2 | H191: 0 | I191: 10 | J191: 50 | K191: СГР
D194: итого | F194: =SUM(F185:F193) -> 830 | G194: 21 | H194: 21.6 | I194: 100.6 | J194: 681
A195: =A177 -> 2 | B195: =B177 -> 5 | C195: Итого за день: | G195: 38.9 | H195: 36 | I195: 202.9 | J195: 1313.6
